[Event "FIDE WCCC Girls-10 2024"]
[Site "Montesilvano"]
[Date "2024.11.25"]
[Round "10.26"]
[White "Saltkhutsishvili, Sara"]
[Black "Artemenko, Isabella"]
[Result "0-1"]
[ECO "C55"]
[WhiteElo "1546"]
[BlackElo "1637"]
[Annotator "NA RC"]
[PlyCount "114"]
[EventDate "2024.11.18"]
[EventType "swiss"]
[EventCountry "ITA"]
[SourceTitle "playchess.com"]
[Source "ChessBase"]
[SourceQuality "1"]
[TimeControl "5400+30"]

1. e4 {[%emt 0:00:04]} e5 {[%emt 0:00:05]} 2. Nf3 {[%emt 0:01:12]} Nc6 {[%emt 0:00:07]} 3. Bc4 {[%emt 0:00:04]} Nf6 {[%emt 0:00:06]} 4. d3 {[%emt 0:00:12]} Be7 {[%emt 0:00:05]} 5. O-O {[%emt 0:02:19]} O-O {[%emt 0:00:05]} 6. Nc3 {[%emt 0:06:03]} d6 {[%emt 0:00:44]} 7. h3 {[%emt 0:01:48]} Na5 {[%emt 0:00:53]} 8. Bb3 {[%emt 0:02:23]} Nxb3 {[%emt 0:00:07]} 9. axb3 {[%emt 0:00:16]} c6 {[%emt 0:11:04]} 10. Re1 {[%emt 0:06:41]} Ne8 {[%emt 0:04:30]} 11. d4 {[%emt 0:12:25]} exd4 {[%emt 0:09:38]} 12. Nxd4 {[%emt 0:01:33]} Nc7 {[%emt 0:01:04]} 13. Be3 {[%emt 0:10:06]} c5 {[%emt 0:14:50]} 14. Ndb5 {[%emt 0:07:08]} Nxb5 {[%emt 0:08:28]} 15. Nxb5 {[%emt 0:00:30]} a6 {[%emt 0:01:02]} 16. Nc3 {[%emt 0:05:01]} Be6 {[%emt 0:13:35]} 17. f4 {[%emt 0:02:52]} f5 {[%emt 0:00:41]} 18. Qd2 {[%emt 0:10:45]} fxe4 {[%emt 0:12:59]} 19. Nxe4 {[%emt 0:02:47]} Qc7 {[%emt 0:00:52]} 20. Nc3 {[%emt 0:06:56]} Kh8 {[%emt 0:06:34]} 21. Bf2 {[%emt 0:03:15]} Bg8 {[%emt 0:00:44]} 22. Bg3 {[%emt 0:01:37]} Bf6 {[%emt 0:03:11]} 23. Rad1 {[%emt 0:02:44]} Rad8 {[%emt 0:02:17]} 24. Ne2 {[%emt 0:02:23]} Qb6 {[%emt 0:01:02]} 25. Bf2 {[%emt 0:01:47]} Qc6 {[%emt 0:01:03]} 26. Nc3 {[%emt 0:01:18]} d5 {[%emt 0:02:09]} 27. Kh1 {[%emt 0:03:29]} d4 {[%emt 0:00:33]} 28. Ne4 {[%emt 0:00:23]} Bd5 {[%emt 0:00:20]} 29. Nxf6 {[%emt 0:01:06]} Bxg2+ {[%emt 0:00:09]} 30. Kh2 {[%emt 0:00:45]} gxf6 {[%emt 0:00:45]} 31. Bh4 {[%emt 0:00:56]} Bf3 {[%emt 0:01:08]} 32. Ra1 {[%emt 0:00:33]} Rg8 {[%emt 0:00:43]} 33. Rg1 {[%emt 0:00:18]} Rxg1 {[%emt 0:00:14]} 34. Rxg1 {[%emt 0:00:12]} Rg8 {[%emt 0:00:49]} 35. Bg3 {[%emt 0:00:42]} f5 {[%emt 0:01:25]} 36. c3 {[%emt 0:01:06]} Qd5 {[%emt 0:00:09]} 37. Qf2 {[%emt 0:01:23]} Be4 {[%emt 0:00:19]} 38. c4 {[%emt 0:00:52]} Qd6 {[%emt 0:00:08]} 39. Rd1 {[%emt 0:01:25]} Rg6 {[%emt 0:00:53]} 40. b4 {[%emt 0:00:21]} b6 {[%emt 0:00:14]} 41. bxc5 {[%emt 0:00:19]} bxc5 {[%emt 0:00:06]} 42. b4 {[%emt 0:00:11]} d3 {[%emt 0:01:25]} 43. bxc5 {[%emt 0:00:24]} Qd7 {[%emt 0:00:20]} 44. Rb1 {[%emt 0:01:04]} Qd8 {[%emt 0:01:11]} 45. Rb2 {[%emt 0:01:04]} Kg8 {[%emt 0:00:49]} 46. Qd2 {[%emt 0:00:59]} Qd4 {[%emt 0:00:49]} 47. h4 {[%emt 0:01:04]} Qxc4 {[%emt 0:01:24]} 48. Qa5 {[%emt 0:00:46]} Qd4 {[%emt 0:00:48]} 49. Rb8+ {[%emt 0:00:44]} Kg7 {[%emt 0:00:08]} 50. Qd2 {[%emt 0:00:43]} Qxc5 {[%emt 0:00:25]} 51. Rb2 {[%emt 0:00:20]} a5 {[%emt 0:00:23]} 52. Bf2 {[%emt 0:00:25]} Rg2+ {[%emt 0:01:19]} 53. Kh3 {[%emt 0:00:02]} Qc6 {[%emt 0:01:07]} 54. Bd4+ {[%emt 0:00:58]} Kf7 {[%emt 0:00:29]} 55. Bf2 {[%emt 0:00:17]} Qg6 {[%emt 0:00:18]} 56. Rb7+ {[%emt 0:00:39]} Bxb7 {[%emt 0:00:06]} 57. Qa2+ {[%emt 0:00:07]} Qe6 {[%emt 0:00:06]} 0-1

[Event "FIDE WCCC Girls-10 2024"]
[Site "Montesilvano"]
[Date "2024.11.25"]
[Round "10.27"]
[White "Abibulla, Inzhu"]
[Black "Malcheva, Niya"]
[Result "0-1"]
[ECO "C41"]
[WhiteElo "1499"]
[BlackElo "1620"]
[Annotator "NA RC"]
[PlyCount "62"]
[EventDate "2024.11.18"]
[EventType "swiss"]
[EventCountry "ITA"]
[SourceTitle "playchess.com"]
[Source "ChessBase"]
[SourceQuality "1"]
[TimeControl "5400+30"]

1. e4 e5 2. Nf3 d6 3. d4 exd4 4. Nxd4 Nf6 5. Nc3 Be7 6. Bc4 O-O 7. O-O Re8 8. Be3 Bf8 9. Bd3 Nbd7 10. Qd2 Nc5 11. f3 h6 12. Bb5 Bd7 13. Bxd7 Qxd7 14. Kh1 d5 15. exd5 Nxd5 16. Nxd5 Qxd5 17. Qf2 Qe5 18. Rfe1 Rad8 19. Rad1 Qd5 20. b3 a6 21. c4 Qh5 22. Rd2 Bd6 23. g3 Nd7 24. Red1 Bb4 25. Re2 Ne5 26. Bf4 f6 27. Re4 c5 28. Bxe5 fxe5 29. Rh4 Qf7 30. Rg4 Rxd4 31. Rdxd4 exd4 0-1

[Event "FIDE WCCC Girls-10 2024"]
[Site "Montesilvano"]
[Date "2024.11.25"]
[Round "10.28"]
[White "Gastaldo, Agathe"]
[Black "Lisboa, Maria Eduarda Mazzar"]
[Result "0-1"]
[ECO "B01"]
[WhiteElo "1589"]
[BlackElo "1490"]
[Annotator "NA RC"]
[PlyCount "62"]
[EventDate "2024.11.18"]
[EventType "swiss"]
[EventCountry "ITA"]
[SourceTitle "playchess.com"]
[Source "ChessBase"]
[SourceQuality "1"]
[TimeControl "5400+30"]

1. e4 {[%emt 0:00:09]} d5 {[%emt 0:00:09]} 2. exd5 {[%emt 0:00:43]} Qxd5 {[%emt 0:00:08]} 3. Nc3 {[%emt 0:00:40]} Qa5 {[%emt 0:00:07]} 4. d4 {[%emt 0:00:50]} c6 {[%emt 0:00:15]} 5. Bc4 {[%emt 0:00:54]} Bf5 {[%emt 0:00:29]} 6. Nf3 {[%emt 0:00:56]} Nf6 {[%emt 0:00:26]} 7. Ne5 {[%emt 0:01:33]} e6 {[%emt 0:00:12]} 8. g4 {[%emt 0:01:33]} Bg6 {[%emt 0:00:29]} 9. h4 {[%emt 0:01:14]} Nbd7 {[%emt 0:00:25]} 10. Nxd7 {[%emt 0:01:59]} Nxd7 {[%emt 0:00:06]} 11. h5 {[%emt 0:00:21]} Be4 {[%emt 0:00:10]} 12. O-O {[%emt 0:01:02]} Bd5 {[%emt 0:00:20]} 13. Bd3 {[%emt 0:01:29]} Bd6 {[%emt 0:03:18]} 14. Qe2 {[%emt 0:09:09]} O-O-O {[%emt 0:02:29]} 15. Nd1 {[%emt 0:00:58]} Qc7 {[%emt 0:00:35]} 16. f3 {[%emt 0:02:23]} c5 {[%emt 0:22:35]} 17. c4 {[%emt 0:02:47]} Bc6 {[%emt 0:00:06]} 18. Be3 {[%emt 0:01:43]} g6 {[%emt 0:08:14]} 19. hxg6 {[%emt 0:02:53]} hxg6 {[%emt 0:00:09]} 20. Rf2 {[%emt 0:02:17]} Rh7 {[%emt 0:04:51]} 21. Rg2 {[%emt 0:07:53]} Rdh8 {[%emt 0:01:45]} 22. Nf2 {[%emt 0:11:22]} Qb6 {[%emt 0:09:28]} 23. Rd1 {[%emt 0:08:47]} cxd4 {[%emt 0:00:26]} 24. Bxd4 {[%emt 0:00:44]} Qxd4 {[%emt 0:01:19]} 25. Kf1 {[%emt 0:01:38]} Rh1+ {[%emt 0:01:59]} 26. Rg1 {[%emt 0:00:15]} Rxg1+ {[%emt 0:00:12]} 27. Kxg1 {[%emt 0:00:05]} Qf4 {[%emt 0:01:56]} 28. Be4 {[%emt 0:01:06]} Qg3+ {[%emt 0:02:09]} 29. Kf1 {[%emt 0:01:49]} Bc5 {[%emt 0:00:30]} 30. Rd2 {[%emt 0:01:05]} Rh1+ {[%emt 0:00:13]} 31. Nxh1 {[%emt 0:00:18]} Qg1# {[%emt 0:00:06]} 0-1

[Event "FIDE WCCC Girls-10 2024"]
[Site "Montesilvano"]
[Date "2024.11.25"]
[Round "10.29"]
[White "Rzadkowska, Lila"]
[Black "Sobirova, Mumtozbegim"]
[Result "1-0"]
[ECO "D41"]
[WhiteElo "1765"]
[BlackElo "1476"]
[Annotator "NA RC"]
[PlyCount "73"]
[EventDate "2024.11.18"]
[EventType "swiss"]
[EventCountry "ITA"]
[SourceTitle "playchess.com"]
[Source "ChessBase"]
[SourceQuality "1"]
[TimeControl "5400+30"]

1. d4 {[%emt 0:00:04]} Nf6 {[%emt 0:00:35]} 2. c4 {[%emt 0:00:24]} e6 {[%emt 0:00:07]} 3. Nc3 {[%emt 0:00:12]} d5 {[%emt 0:00:33]} 4. cxd5 {[%emt 0:00:14]} Nxd5 {[%emt 0:00:22]} 5. e4 {[%emt 1:32:06]} Nxc3 {[%emt 0:00:18]} 6. bxc3 {[%emt 0:00:00]} c5 {[%emt 0:00:12]} 7. Nf3 {[%emt 0:00:00]} cxd4 {[%emt 0:01:04]} 8. cxd4 {[%emt 0:00:00]} Bb4+ {[%emt 0:00:45]} 9. Bd2 {[%emt 0:00:00]} Bxd2+ {[%emt 0:00:21]} 10. Qxd2 {[%emt 0:00:00]} O-O {[%emt 0:01:25]} 11. Be2 {[%emt 0:00:00]} b6 {[%emt 0:01:39]} 12. O-O {[%emt 0:00:00]} Bb7 {[%emt 0:00:35]} 13. Bd3 {[%emt 0:00:00]} Nc6 {[%emt 0:00:37]} 14. Bc2 {[%emt 0:00:00]} Rc8 {[%emt 0:02:40]} 15. Bb3 {[%emt 0:00:00]} Ne7 {[%emt 0:02:13]} 16. Rfe1 {[%emt 0:00:00]} Ng6 {[%emt 0:03:02]} 17. Rad1 {[%emt 0:00:00]} Qc7 {[%emt 0:02:12]} 18. d5 {[%emt 0:00:00]} exd5 {[%emt 0:00:35]} 19. exd5 {[%emt 0:00:00]} Qf4 {[%emt 0:02:09]} 20. Qxf4 {[%emt 0:00:00]} Nxf4 {[%emt 0:00:15]} 21. Re7 {[%emt 0:00:00]} Ba6 {[%emt 0:02:46]} 22. d6 {[%emt 0:00:00]} Ng6 {[%emt 0:06:37]} 23. Rxa7 {[%emt 0:00:00]} Be2 {[%emt 0:04:37]} 24. d7 {[%emt 0:00:00]} Rcd8 {[%emt 0:01:06]} 25. Rd6 {[%emt 0:00:00]} Bxf3 {[%emt 0:04:43]} 26. gxf3 {[%emt 0:00:00]} Ne5 {[%emt 0:00:17]} 27. f4 {[%emt 0:00:00]} Nf3+ {[%emt 0:00:55]} 28. Kh1 {[%emt 0:00:00]} Nh4 {[%emt 0:01:01]} 29. Rxb6 {[%emt 0:00:00]} Nf5 {[%emt 0:01:50]} 30. Rc7 {[%emt 0:00:00]} Ne7 {[%emt 0:02:32]} 31. a4 {[%emt 0:00:00]} h6 {[%emt 0:00:57]} 32. a5 {[%emt 0:00:00]} Nf5 {[%emt 0:01:02]} 33. a6 {[%emt 0:00:00]} h5 {[%emt 0:01:41]} 34. a7 {[%emt 0:00:00]} Ne7 {[%emt 0:00:09]} 35. Rcb7 {[%emt 0:00:00]} g6 {[%emt 0:02:18]} 36. Rb8 {[%emt 0:00:00]} Rxb8 {[%emt 0:00:54]} 37. axb8=Q {[%emt 0:16:00]} 1-0

[Event "FIDE WCCC Girls-10 2024"]
[Site "Montesilvano"]
[Date "2024.11.25"]
[Round "10.30"]
[White "Guerra Mansilla, Maria Ignacia"]
[Black "Stoica, Melina-Theodora"]
[Result "1/2-1/2"]
[ECO "A14"]
[WhiteElo "1545"]
[BlackElo "1675"]
[Annotator "NA RC"]
[PlyCount "26"]
[EventDate "2024.11.18"]
[EventType "swiss"]
[EventCountry "ITA"]
[SourceTitle "playchess.com"]
[Source "ChessBase"]
[SourceQuality "1"]
[TimeControl "5400+30"]

1. c4 {[%emt 0:00:02]} e6 {[%emt 0:00:15]} 2. b3 {[%emt 0:00:05]} d5 {[%emt 0:00:59]} 3. Nf3 {[%emt 0:00:12]} Nf6 {[%emt 0:00:37]} 4. Bb2 {[%emt 0:00:28]} Be7 {[%emt 0:05:26]} 5. g3 {[%emt 0:01:25]} c6 {[%emt 0:02:31]} 6. Bg2 {[%emt 0:01:40]} O-O {[%emt 0:00:46]} 7. O-O {[%emt 0:00:25]} Nbd7 {[%emt 0:00:30]} 8. d3 {[%emt 0:01:55]} b6 {[%emt 0:06:17]} 9. Nbd2 {[%emt 0:00:37]} Bb7 {[%emt 0:00:58]} 10. Qc2 {[%emt 0:04:08]} Rc8 {[%emt 0:03:35]} 11. Rac1 {[%emt 0:05:50]} c5 {[%emt 0:04:39]} 12. e3 {[%emt 0:05:35]} Qc7 {[%emt 0:12:50]} 13. Qd1 {[%emt 0:02:27]} Qd8 {[%emt 0:13:42]} 1/2-1/2

[Event "FIDE WCCC Girls-10 2024"]
[Site "Montesilvano"]
[Date "2024.11.25"]
[Round "10.32"]
[White "Xin, Lisa J."]
[Black "Mamarasulova, Yasmina"]
[Result "1-0"]
[ECO "D04"]
[WhiteElo "1602"]
[BlackElo "1444"]
[Annotator "NA RC"]
[PlyCount "39"]
[EventDate "2024.11.18"]
[EventType "swiss"]
[EventCountry "ITA"]
[SourceTitle "playchess.com"]
[Source "ChessBase"]
[SourceQuality "1"]
[TimeControl "5400+30"]

1. d4 {[%emt 0:00:04]} Nf6 {[%emt 0:00:06]} 2. Nf3 {[%emt 0:00:13]} d5 {[%emt 0:00:03]} 3. e3 {[%emt 0:00:07]} c5 {[%emt 0:00:04]} 4. b3 {[%emt 0:00:05]} cxd4 {[%emt 0:00:04]} 5. exd4 {[%emt 0:00:12]} g6 {[%emt 0:00:05]} 6. Bb2 {[%emt 0:01:17]} Bg7 {[%emt 0:00:05]} 7. Bd3 {[%emt 0:00:44]} O-O {[%emt 0:00:11]} 8. O-O {[%emt 0:00:30]} Nc6 {[%emt 0:00:04]} 9. a3 {[%emt 0:00:15]} Nh5 {[%emt 0:00:05]} 10. g3 {[%emt 0:08:51]} Bh3 {[%emt 0:15:33]} 11. Re1 {[%emt 0:00:31]} Qd7 {[%emt 0:36:09]} 12. Nbd2 {[%emt 0:15:27]} Nf4 {[%emt 0:13:58]} 13. Bb5 {[%emt 0:05:01]} Ne6 {[%emt 0:11:06]} 14. Ne5 {[%emt 0:02:32]} Bxe5 {[%emt 0:01:02]} 15. dxe5 {[%emt 0:02:11]} a6 {[%emt 0:00:25]} 16. Bd3 {[%emt 0:02:08]} Nc5 {[%emt 0:00:56]} 17. Bf1 {[%emt 0:05:34]} e6 {[%emt 0:02:21]} 18. Bxh3 {[%emt 0:00:20]} Ne7 {[%emt 0:00:47]} 19. Qf3 {[%emt 0:02:31]} Rac8 {[%emt 0:03:17]} 20. Rad1 {[%emt 0:51:57]} 1-0

[Event "FIDE WCCC Girls-10 2024"]
[Site "Montesilvano"]
[Date "2024.11.25"]
[Round "10.35"]
[White "Macchia-Shahar, Yali"]
[Black "Li, Grace"]
[Result "1-0"]
[ECO "C78"]
[WhiteElo "1564"]
[BlackElo "1529"]
[Annotator "NA RC"]
[PlyCount "149"]
[EventDate "2024.11.18"]
[EventType "swiss"]
[EventCountry "ITA"]
[SourceTitle "playchess.com"]
[Source "ChessBase"]
[SourceQuality "1"]
[TimeControl "5400+30"]

1. e4 {[%emt 0:00:06]} e5 {[%emt 0:00:07]} 2. Nf3 {[%emt 0:00:07]} Nc6 {[%emt 0:00:14]} 3. Bb5 {[%emt 0:00:17]} a6 {[%emt 0:00:13]} 4. Ba4 {[%emt 0:00:18]} b5 {[%emt 0:00:17]} 5. Bb3 {[%emt 0:00:11]} Nf6 {[%emt 0:00:21]} 6. O-O {[%emt 0:01:39]} Bc5 {[%emt 0:00:12]} 7. Nxe5 {[%emt 0:00:42]} Nxe5 {[%emt 0:01:39]} 8. d4 {[%emt 0:00:19]} Bxd4 {[%emt 0:00:11]} 9. Qxd4 {[%emt 0:00:23]} Nc6 {[%emt 0:00:16]} 10. Qd1 {[%emt 0:00:43]} O-O {[%emt 0:01:29]} 11. Re1 {[%emt 0:01:21]} Re8 {[%emt 0:01:04]} 12. Bg5 {[%emt 0:02:56]} h6 {[%emt 0:01:42]} 13. Bh4 {[%emt 0:01:10]} g5 {[%emt 0:02:40]} 14. Bg3 {[%emt 0:00:56]} d6 {[%emt 0:05:55]} 15. h3 {[%emt 0:04:40]} Bb7 {[%emt 0:02:14]} 16. Nc3 {[%emt 0:07:09]} Na5 {[%emt 0:03:32]} 17. Qf3 {[%emt 0:04:31]} Nxb3 {[%emt 0:01:03]} 18. cxb3 {[%emt 0:01:06]} Re6 {[%emt 0:08:21]} 19. h4 {[%emt 0:06:50]} Kg7 {[%emt 1:08:30]} 20. Re3 {[%emt 0:06:59]} Qh8 {[%emt 0:00:00]} 21. Qf5 {[%emt 0:04:16]} Bc8 {[%emt 0:00:00]} 22. hxg5 {[%emt 0:03:55]} hxg5 {[%emt 0:00:00]} 23. Qxg5+ {[%emt 0:01:17]} Kf8 {[%emt 0:00:00]} 24. e5 {[%emt 0:02:18]} Ne8 {[%emt 0:02:30]} 25. exd6 {[%emt 0:05:01]} cxd6 {[%emt 0:00:00]} 26. Rd1 {[%emt 0:04:47]} Ra7 {[%emt 0:00:00]} 27. Rxe6 {[%emt 0:04:12]} Bxe6 {[%emt 0:00:00]} 28. Bxd6+ {[%emt 0:04:49]} Nxd6 {[%emt 0:00:00]} 29. Rxd6 {[%emt 0:00:26]} Ra8 {[%emt 0:00:00]} 30. Rd1 {[%emt 0:00:34]} Ra7 31. Rd6 {[%emt 0:00:26]} Ra8 {[%emt 0:00:00]} 32. Qf4 {[%emt 0:03:24]} Re8 {[%emt 0:00:00]} 33. Qg5 {[%emt 0:00:00]} Ra8 {[%emt 0:00:00]} 34. Qf4 {[%emt 0:01:00]} Re8 {[%emt 0:00:00]} 35. Qd4 {[%emt 0:03:36]} Qh6 {[%emt 0:00:00]} 36. Rd8 {[%emt 0:03:02]} Rxd8 {[%emt 0:00:00]} 37. Qxd8+ {[%emt 0:00:12]} Kg7 {[%emt 0:00:00]} 38. Ne2 {[%emt 0:05:18]} Bg4 {[%emt 0:00:00]} 39. Qd4+ {[%emt 0:00:23]} Kf8 {[%emt 0:00:00]} 40. Qxg4 {[%emt 0:00:25]} Qh7 {[%emt 0:00:00]} 41. Qc8+ {[%emt 0:02:11]} Kg7 {[%emt 0:00:00]} 42. Qd8 {[%emt 0:00:00]} Qh6 {[%emt 0:00:00]} 43. Qd4+ {[%emt 0:00:00]} Kf8 44. Qg4 {[%emt 0:00:00]} Qh7 {[%emt 0:00:00]} 45. Qc8+ {[%emt 0:02:00]} Kg7 46. Qc3+ {[%emt 0:03:21]} Kf8 {[%emt 0:00:00]} 47. Qc1 {[%emt 0:00:57]} Qh5 {[%emt 0:00:00]} 48. Ng3 {[%emt 0:01:37]} Qg6 {[%emt 0:00:00]} 49. Qc5+ {[%emt 0:00:53]} Kg7 {[%emt 0:00:00]} 50. Qf5 {[%emt 0:00:48]} Qxf5 {[%emt 0:00:00]} 51. Nxf5+ {[%emt 0:00:11]} Kf6 {[%emt 0:00:02]} 52. Ne3 {[%emt 0:00:20]} Ke6 {[%emt 0:00:14]} 53. Kf1 {[%emt 0:00:12]} a5 {[%emt 0:00:12]} 54. Ke2 {[%emt 0:00:08]} Ke5 {[%emt 0:00:14]} 55. Kd3 {[%emt 0:00:28]} f6 {[%emt 0:00:15]} 56. a4 {[%emt 0:00:29]} Kd6 {[%emt 0:00:14]} 57. Ke4 {[%emt 0:00:00]} b4 {[%emt 0:00:24]} 58. Nc4+ {[%emt 0:00:00]} Ke6 {[%emt 0:00:19]} 59. Nxa5 {[%emt 0:00:00]} f5+ {[%emt 0:00:15]} 60. Kd4 {[%emt 0:00:00]} Kd6 {[%emt 0:00:15]} 61. Nc4+ {[%emt 0:00:00]} Ke6 {[%emt 0:00:26]} 62. Ne3 {[%emt 0:00:00]} f4 {[%emt 0:01:08]} 63. Nd5 {[%emt 0:00:30]} Kf5 {[%emt 0:00:47]} 64. Nxf4 {[%emt 0:00:13]} Kxf4 {[%emt 0:00:11]} 65. a5 {[%emt 0:00:10]} Kf5 {[%emt 0:00:11]} 66. a6 {[%emt 0:00:05]} Kf6 {[%emt 0:00:06]} 67. a7 {[%emt 0:00:07]} Ke6 {[%emt 0:00:12]} 68. a8=Q {[%emt 0:18:06]} Kd6 {[%emt 0:00:25]} 69. Qa6+ {[%emt 0:00:00]} Kc7 {[%emt 0:00:14]} 70. Kd5 {[%emt 0:00:00]} Kb8 {[%emt 0:00:32]} 71. Qh6 {[%emt 0:00:00]} Kb7 {[%emt 0:00:14]} 72. Kc5 {[%emt 0:00:00]} Kc7 {[%emt 0:00:22]} 73. Qg7+ {[%emt 0:00:00]} Kb8 {[%emt 0:00:21]} 74. Kc6 {[%emt 0:00:00]} Ka8 {[%emt 0:00:23]} 75. Qb7# {[%emt 0:00:00]} 1-0

[Event "FIDE WCCC Girls-10 2024"]
[Site "Montesilvano"]
[Date "2024.11.25"]
[Round "10.36"]
[White "Vitsiuk, Aleksandra"]
[Black "Bjerregaard Hagen, Frida"]
[Result "0-1"]
[ECO "C01"]
[WhiteElo "1476"]
[BlackElo "1815"]
[Annotator "NA RC"]
[PlyCount "118"]
[EventDate "2024.11.18"]
[EventType "swiss"]
[EventCountry "ITA"]
[SourceTitle "playchess.com"]
[Source "ChessBase"]
[SourceQuality "1"]
[TimeControl "5400+30"]

1. e4 {[%emt 0:00:06]} e6 {[%emt 0:00:07]} 2. d4 {[%emt 0:01:27]} d5 {[%emt 0:00:10]} 3. exd5 {[%emt 0:02:48]} exd5 {[%emt 0:00:14]} 4. Nf3 {[%emt 0:04:13]} Nf6 {[%emt 0:00:35]} 5. Bd3 {[%emt 0:03:52]} Bd6 {[%emt 0:02:04]} 6. O-O {[%emt 0:05:04]} O-O {[%emt 0:00:56]} 7. Bg5 {[%emt 0:07:10]} Bg4 {[%emt 0:04:38]} 8. Nbd2 {[%emt 0:03:18]} Nbd7 {[%emt 0:05:21]} 9. h3 {[%emt 0:06:37]} Bh5 {[%emt 0:03:31]} 10. Bf5 {[%emt 0:03:03]} h6 {[%emt 0:07:54]} 11. Bh4 {[%emt 0:02:16]} Be7 12. Re1 {[%emt 0:03:23]} c6 {[%emt 0:09:23]} 13. Re3 {[%emt 0:03:28]} Bg6 {[%emt 0:07:23]} 14. Bxd7 {[%emt 0:06:56]} Qxd7 {[%emt 0:01:23]} 15. Qe2 {[%emt 0:01:06]} Bd8 {[%emt 0:07:13]} 16. c3 {[%emt 0:02:11]} Nh7 {[%emt 0:04:18]} 17. Ne5 {[%emt 0:02:53]} Qd6 {[%emt 0:04:27]} 18. Bg3 {[%emt 0:01:22]} Qe6 {[%emt 0:02:51]} 19. Nb3 {[%emt 0:02:44]} Bb6 {[%emt 0:01:47]} 20. Nc4 {[%emt 0:02:19]} Qf6 {[%emt 0:08:14]} 21. Nd6 {[%emt 0:00:58]} Bc7 {[%emt 0:01:57]} 22. Ne8 {[%emt 0:00:54]} Qd8 {[%emt 0:01:54]} 23. Nxc7 {[%emt 0:00:06]} Rc8 {[%emt 0:00:18]} 24. Re7 {[%emt 0:00:48]} Be4 {[%emt 0:01:12]} 25. f3 {[%emt 0:00:51]} Qxe7 {[%emt 0:00:21]} 26. fxe4 {[%emt 0:00:05]} Rxc7 {[%emt 0:00:40]} 27. Bxc7 {[%emt 0:00:06]} Qxc7 {[%emt 0:00:07]} 28. exd5 {[%emt 0:00:26]} cxd5 {[%emt 0:00:13]} 29. Re1 {[%emt 0:00:12]} Qg3 {[%emt 0:02:27]} 30. Nc5 {[%emt 0:02:40]} Ng5 {[%emt 0:02:12]} 31. Kh1 {[%emt 0:01:01]} b6 {[%emt 0:01:38]} 32. Nd3 {[%emt 0:02:32]} Ne4 {[%emt 0:02:32]} 33. Qe3 {[%emt 0:00:52]} Qxe3 {[%emt 0:00:40]} 34. Rxe3 {[%emt 0:00:08]} f6 {[%emt 0:00:33]} 35. Kg1 {[%emt 0:00:33]} Kf7 {[%emt 0:00:09]} 36. Nf2 {[%emt 0:01:11]} f5 {[%emt 0:00:55]} 37. g4 {[%emt 0:01:01]} g6 {[%emt 0:01:03]} 38. Nd3 {[%emt 0:00:53]} fxg4 {[%emt 0:01:14]} 39. hxg4 {[%emt 0:00:41]} Kg7 {[%emt 0:01:39]} 40. Kg2 {[%emt 0:00:17]} h5 {[%emt 0:00:29]} 41. gxh5 {[%emt 0:00:14]} gxh5 {[%emt 0:00:07]} 42. Kh3 {[%emt 0:00:38]} Kh6 {[%emt 0:00:24]} 43. Kh4 {[%emt 0:00:21]} Rf1 {[%emt 0:00:55]} 44. Kh3 {[%emt 0:00:22]} Kg5 {[%emt 0:00:22]} 45. Kg2 {[%emt 0:00:13]} Rf8 {[%emt 0:00:30]} 46. Re2 {[%emt 0:00:29]} h4 {[%emt 0:01:03]} 47. Ne5 {[%emt 0:00:15]} Kh5 {[%emt 0:02:03]} 48. Kh3 {[%emt 0:00:51]} Rf2 {[%emt 0:00:50]} 49. Rxf2 {[%emt 0:00:22]} Nxf2+ {[%emt 0:00:05]} 50. Kg2 {[%emt 0:00:20]} Nd1 {[%emt 0:00:33]} 51. Nd3 {[%emt 0:00:35]} Kg4 {[%emt 0:00:14]} 52. Ne5+ {[%emt 0:00:33]} Kf4 {[%emt 0:00:23]} 53. Kh3 {[%emt 0:00:06]} Nxb2 {[%emt 0:00:18]} 54. Kxh4 {[%emt 0:00:04]} Ke3 {[%emt 0:00:20]} 55. Kg5 {[%emt 0:00:26]} Kd2 {[%emt 0:00:20]} 56. Kf6 {[%emt 0:00:13]} Kxc3 {[%emt 0:00:12]} 57. Ke6 {[%emt 0:00:04]} Kxd4 {[%emt 0:00:34]} 58. Nc6+ {[%emt 0:00:12]} Kc5 {[%emt 0:00:17]} 59. Nxa7 {[%emt 0:00:14]} d4 {[%emt 0:00:16]} 0-1

[Event "FIDE WCCC Girls-10 2024"]
[Site "Montesilvano"]
[Date "2024.11.25"]
[Round "10.38"]
[White "Khelfallah, Ikhlas"]
[Black "Camacho Chavez, Nirvana"]
[Result "1-0"]
[ECO "B13"]
[WhiteElo "1449"]
[BlackElo "1638"]
[Annotator "NA RC"]
[PlyCount "77"]
[EventDate "2024.11.18"]
[EventType "swiss"]
[EventCountry "ITA"]
[SourceTitle "playchess.com"]
[Source "ChessBase"]
[SourceQuality "1"]
[TimeControl "5400+30"]

1. e4 {[%emt 0:00:04]} c6 {[%emt 0:00:07]} 2. d4 {[%emt 0:00:06]} d5 {[%emt 0:00:08]} 3. exd5 {[%emt 0:00:12]} cxd5 {[%emt 0:00:17]} 4. Bd3 {[%emt 0:00:20]} Nc6 {[%emt 0:00:13]} 5. c3 {[%emt 0:00:22]} Qc7 {[%emt 0:00:23]} 6. Ne2 {[%emt 0:00:34]} Bg4 {[%emt 0:00:38]} 7. O-O {[%emt 0:01:01]} Bxe2 {[%emt 0:03:40]} 8. Qxe2 {[%emt 0:00:43]} e6 {[%emt 0:02:14]} 9. Nd2 {[%emt 0:05:57]} Bd6 {[%emt 0:01:51]} 10. Nf3 {[%emt 0:01:10]} Nf6 {[%emt 0:01:39]} 11. h3 {[%emt 0:05:10]} O-O {[%emt 0:01:29]} 12. Bg5 {[%emt 0:02:00]} Nd7 {[%emt 0:02:06]} 13. Rfe1 {[%emt 0:07:03]} h6 {[%emt 0:02:45]} 14. Be3 {[%emt 0:03:24]} Rac8 {[%emt 0:02:12]} 15. Qd2 {[%emt 0:04:03]} Nb6 {[%emt 0:08:23]} 16. Rac1 {[%emt 0:22:24]} Rfe8 {[%emt 0:13:05]} 17. Bb1 {[%emt 0:12:14]} Nc4 {[%emt 0:03:03]} 18. Qc2 {[%emt 0:03:05]} f5 {[%emt 0:03:45]} 19. Rcd1 {[%emt 0:04:29]} N6a5 {[%emt 0:03:40]} 20. Bc1 {[%emt 0:02:28]} b5 {[%emt 0:10:44]} 21. Re2 {[%emt 0:04:18]} Qb6 {[%emt 0:04:46]} 22. Rde1 {[%emt 0:02:40]} Bf8 {[%emt 0:00:57]} 23. Nh4 {[%emt 0:02:09]} b4 {[%emt 0:01:46]} 24. Nxf5 {[%emt 0:01:07]} Rc7 {[%emt 0:05:48]} 25. Bf4 {[%emt 0:01:47]} Rb7 {[%emt 0:01:37]} 26. Qd3 {[%emt 0:06:54]} bxc3 {[%emt 0:04:14]} 27. Qg3 {[%emt 0:01:40]} g5 {[%emt 0:02:30]} 28. h4 {[%emt 0:00:58]} Bg7 {[%emt 0:04:54]} 29. hxg5 {[%emt 0:00:26]} hxg5 {[%emt 0:00:38]} 30. Qxg5 {[%emt 0:00:20]} Qc6 {[%emt 0:07:08]} 31. Nh6+ {[%emt 0:00:51]} Kf8 {[%emt 0:01:00]} 32. Qg6 {[%emt 0:00:23]} Rf7 {[%emt 0:03:38]} 33. Nxf7 {[%emt 0:00:24]} Bxd4 {[%emt 0:00:28]} 34. Bh6+ {[%emt 0:00:30]} Bg7 {[%emt 0:01:02]} 35. Qxg7+ {[%emt 0:00:16]} Ke7 {[%emt 0:00:03]} 36. Ne5+ {[%emt 0:00:21]} Kd6 {[%emt 0:00:27]} 37. Nxc6 {[%emt 0:00:08]} Nxc6 {[%emt 0:00:04]} 38. Qxc3 {[%emt 0:00:23]} N6e5 {[%emt 0:00:22]} 39. Bf4 {[%emt 0:00:11]} 1-0